[Event "*** SCC Grand Prix: Titled Tuesday Blitz"]
[Site "Chess.com"]
[Date "2020.07.14"]
[Round "1"]
[White "OhanyanEminChess"]
[Black "pirulillo"]
[Result "1-0"]
[WhiteElo "2507"]
[BlackElo "2134"]
[TimeControl "180+1"]
[EndTime "10:08:59 PDT"]
[Termination "OhanyanEminChess won on time"]

1. e4 {[%clk 0:02:56.3]} 1... c5 {[%clk 0:02:59.5]} 2. Nf3 {[%clk 0:02:55.9]}
2... e6 {[%clk 0:02:59.2]} 3. d4 {[%clk 0:02:54.6]} 3... cxd4 {[%clk 0:03:00.1]}
4. Nxd4 {[%clk 0:02:55.5]} 4... Nf6 {[%clk 0:02:52.8]} 5. Nc3 {[%clk 0:02:55]}
5... Nc6 {[%clk 0:02:52.2]} 6. Nxc6 {[%clk 0:02:54.6]} 6... bxc6 {[%clk
0:02:51.7]} 7. e5 {[%clk 0:02:54.6]} 7... Nd5 {[%clk 0:02:51.7]} 8. Ne4 {[%clk
0:02:55]} 8... Bb7 {[%clk 0:02:51.6]} 9. c4 {[%clk 0:02:50.4]} 9... Nb4 {[%clk
0:02:49.4]} 10. a3 {[%clk 0:02:45]} 10... c5 {[%clk 0:02:48.8]} 11. axb4 {[%clk
0:02:16.4]} 11... Bxe4 {[%clk 0:02:47.5]} 12. b5 {[%clk 0:02:16.6]} 12... d6
{[%clk 0:02:37.5]} 13. exd6 {[%clk 0:02:15.2]} 13... Bxd6 {[%clk 0:02:36.1]} 14.
Bd3 {[%clk 0:02:13.9]} 14... Bb7 {[%clk 0:02:20.9]} 15. Qg4 {[%clk 0:02:10.2]}
15... g6 {[%clk 0:02:00.5]} 16. Bg5 {[%clk 0:02:02.7]} 16... Be7 {[%clk
0:01:56.9]} 17. Bxe7 {[%clk 0:01:39.2]} 17... Qxe7 {[%clk 0:01:57.8]} 18. O-O
{[%clk 0:01:31.4]} 18... O-O {[%clk 0:01:54.5]} 19. Rfd1 {[%clk 0:01:28.1]}
19... Rfd8 {[%clk 0:01:42.5]} 20. Bf1 {[%clk 0:01:22.6]} 20... a6 {[%clk
0:01:27.5]} 21. Rxd8+ {[%clk 0:01:20.5]} 21... Qxd8 {[%clk 0:01:25.4]} 22. bxa6
{[%clk 0:01:18.3]} 22... Rxa6 {[%clk 0:01:24.4]} 23. Rxa6 {[%clk 0:01:17.9]}
23... Bxa6 {[%clk 0:01:24.6]} 24. Qf4 {[%clk 0:01:18.7]} 24... Qb6 {[%clk
0:01:18.6]} 25. Qe5 {[%clk 0:01:10.2]} 25... Qb4 {[%clk 0:01:14.2]} 26. b3
{[%clk 0:01:02.3]} 26... Qxb3 {[%clk 0:01:09.7]} 27. Qxc5 {[%clk 0:00:58.6]}
27... Qa2 {[%clk 0:00:51.1]} 28. Qb6 {[%clk 0:00:56.8]} 28... Bxc4 {[%clk
0:00:48.1]} 29. Qd8+ {[%clk 0:00:56]} 29... Kg7 {[%clk 0:00:44.7]} 30. Qd4+
{[%clk 0:00:55.4]} 30... Kg8 {[%clk 0:00:36.9]} 31. Bxc4 {[%clk 0:00:51.2]}
31... Qb1+ {[%clk 0:00:35.1]} 32. Bf1 {[%clk 0:00:50.6]} 32... Qc1 {[%clk
0:00:35.1]} 33. h3 {[%clk 0:00:48.2]} 33... Qg5 {[%clk 0:00:33.9]} 34. Qe4
{[%clk 0:00:45.7]} 34... Qe7 {[%clk 0:00:31.7]} 35. Qa8+ {[%clk 0:00:45.3]}
35... Kg7 {[%clk 0:00:31.5]} 36. Qa1+ {[%clk 0:00:46.2]} 36... f6 {[%clk
0:00:30.7]} 37. Qe1 {[%clk 0:00:46.1]} 37... e5 {[%clk 0:00:30.5]} 38. Qe4
{[%clk 0:00:45.6]} 38... Qf7 {[%clk 0:00:27.8]} 39. g3 {[%clk 0:00:44.1]} 39...
Qe7 {[%clk 0:00:28]} 40. Bg2 {[%clk 0:00:44]} 40... Qf7 {[%clk 0:00:27.8]} 41.
h4 {[%clk 0:00:44.2]} 41... Kh8 {[%clk 0:00:27.4]} 42. Qa8+ {[%clk 0:00:36.2]}
42... Kg7 {[%clk 0:00:27.4]} 43. Bd5 {[%clk 0:00:36.7]} 43... Qe7 {[%clk
0:00:27.4]} 44. Qg8+ {[%clk 0:00:33.4]} 44... Kh6 {[%clk 0:00:27.4]} 45. Qc8
{[%clk 0:00:34.3]} 45... Kg7 {[%clk 0:00:27.2]} 46. Qc1 {[%clk 0:00:33.2]} 46...
Qd6 {[%clk 0:00:26]} 47. Bg2 {[%clk 0:00:33.2]} 47... f5 {[%clk 0:00:25.9]} 48.
h5 {[%clk 0:00:31.3]} 48... e4 {[%clk 0:00:24.5]} 49. h6+ {[%clk 0:00:28.6]}
49... Kf6 {[%clk 0:00:24.6]} 50. Qc3+ {[%clk 0:00:27.6]} 50... Qe5 {[%clk
0:00:23.8]} 51. Qc6+ {[%clk 0:00:19.7]} 51... Kg5 {[%clk 0:00:22.6]} 52. Qc1+
{[%clk 0:00:18.8]} 52... f4 {[%clk 0:00:21.9]} 53. gxf4+ {[%clk 0:00:18.4]}
53... Qxf4 {[%clk 0:00:22.1]} 54. Qxf4+ {[%clk 0:00:03.7]} 54... Kxf4 {[%clk
0:00:23]} 55. Kh2 {[%clk 0:00:04.6]} 55... e3 {[%clk 0:00:22.9]} 56. fxe3+
{[%clk 0:00:05.5]} 56... Kxe3 {[%clk 0:00:22.9]} 57. Kg3 {[%clk 0:00:06.4]}
57... Kd4 {[%clk 0:00:17.4]} 58. Kf4 {[%clk 0:00:06.7]} 58... Kc5 {[%clk
0:00:15.1]} 59. Ke5 {[%clk 0:00:06.9]} 59... g5 {[%clk 0:00:10.6]} 60. Kf6
{[%clk 0:00:06.8]} 60... g4 {[%clk 0:00:10.4]} 61. Kg7 {[%clk 0:00:06.7]} 61...
Kd6 {[%clk 0:00:11.3]} 62. Kxh7 {[%clk 0:00:07.1]} 62... Ke7 {[%clk 0:00:11.5]}
63. Kg7 {[%clk 0:00:08]} 63... g3 {[%clk 0:00:11.3]} 64. h7 {[%clk 0:00:08.9]}
64... Ke6 {[%clk 0:00:11.1]} 65. h8=Q {[%clk 0:00:09.8]} 1-0

[Event "*** SCC Grand Prix: Titled Tuesday Blitz"]
[Site "Chess.com"]
[Date "2020.07.14"]
[Round "1"]
[White "Harsha_Bharathakoti"]
[Black "juniortay"]
[Result "1/2-1/2"]
[WhiteElo "2780"]
[BlackElo "2410"]
[TimeControl "180+1"]
[EndTime "10:09:01 PDT"]
[Termination "Game drawn by repetition"]

1. d4 {[%clk 0:02:58.3]} 1... d5 {[%clk 0:02:59.8]} 2. c4 {[%clk 0:02:45.4]}
2... e6 {[%clk 0:02:59.8]} 3. Nf3 {[%clk 0:02:45.3]} 3... c5 {[%clk 0:02:59.9]}
4. cxd5 {[%clk 0:02:45.2]} 4... exd5 {[%clk 0:03:00.8]} 5. Nc3 {[%clk
0:02:45.6]} 5... Nc6 {[%clk 0:03:01.4]} 6. e3 {[%clk 0:02:46.3]} 6... Nf6 {[%clk
0:03:01.9]} 7. Bb5 {[%clk 0:02:46.9]} 7... cxd4 {[%clk 0:03:01]} 8. Nxd4 {[%clk
0:02:46.9]} 8... Bd7 {[%clk 0:03:00.9]} 9. O-O {[%clk 0:02:47]} 9... Bd6 {[%clk
0:03:01.2]} 10. Be2 {[%clk 0:02:47]} 10... O-O {[%clk 0:03:00.5]} 11. b3 {[%clk
0:02:47.3]} 11... Nxd4 {[%clk 0:02:56]} 12. Qxd4 {[%clk 0:02:40.4]} 12... Qc7
{[%clk 0:02:50.1]} 13. Bb2 {[%clk 0:02:40.8]} 13... Bxh2+ {[%clk 0:02:48.4]} 14.
Kh1 {[%clk 0:02:41.5]} 14... Be5 {[%clk 0:02:48.9]} 15. Qh4 {[%clk 0:02:37.6]}
15... Bxc3 {[%clk 0:02:46.8]} 16. Rac1 {[%clk 0:02:37.7]} 16... Ne4 {[%clk
0:02:46.5]} 17. Bd3 {[%clk 0:01:49.5]} 17... Qd8 {[%clk 0:02:11.2]} 18. Qxd8
{[%clk 0:01:44.6]} 18... Rfxd8 {[%clk 0:02:06.8]} 19. Bxc3 {[%clk 0:01:44.7]}
19... Nxc3 {[%clk 0:02:05.8]} 20. Rxc3 {[%clk 0:01:45.6]} 20... Bc6 {[%clk
0:02:02.2]} 21. Rc5 {[%clk 0:01:36.9]} 21... a5 {[%clk 0:02:01.5]} 22. Rfc1
{[%clk 0:01:33.4]} 22... Kf8 {[%clk 0:02:01.8]} 23. Kg1 {[%clk 0:01:33]} 23...
Ke7 {[%clk 0:02:02]} 24. f3 {[%clk 0:01:33.7]} 24... Kd6 {[%clk 0:02:02]} 25.
Kf2 {[%clk 0:01:34.4]} 25... Re8 {[%clk 0:02:02.3]} 26. R5c3 {[%clk 0:01:33.7]}
26... Re5 {[%clk 0:01:59.8]} 27. a3 {[%clk 0:01:31.8]} 27... Rae8 {[%clk
0:01:59.5]} 28. Bf1 {[%clk 0:01:32.5]} 28... h5 {[%clk 0:01:58.5]} 29. b4 {[%clk
0:01:32.6]} 29... axb4 {[%clk 0:01:58]} 30. axb4 {[%clk 0:01:33.5]} 30... R8e7
{[%clk 0:01:45.2]} 31. Ra1 {[%clk 0:01:27.6]} 31... g5 {[%clk 0:01:41.7]} 32. b5
{[%clk 0:01:24.9]} 32... Be8 {[%clk 0:01:41.5]} 33. Ra8 {[%clk 0:01:24.6]} 33...
h4 {[%clk 0:01:40.1]} 34. Rd8+ {[%clk 0:01:19.1]} 34... Rd7 {[%clk 0:01:29.9]}
35. Rb8 {[%clk 0:01:19]} 35... Rc7 {[%clk 0:01:25.6]} 36. Ra3 {[%clk 0:01:15.6]}
36... Rc2+ {[%clk 0:01:25.1]} 37. Kg1 {[%clk 0:01:15.6]} 37... d4 {[%clk
0:01:24.5]} 38. Rd8+ {[%clk 0:00:44.1]} 38... Kc7 {[%clk 0:01:19.3]} 39. Rxd4
{[%clk 0:00:43.7]} 39... Rc1 {[%clk 0:01:18.1]} 40. Rc4+ {[%clk 0:00:41]} 40...
Rxc4 {[%clk 0:01:16.9]} 41. Bxc4 {[%clk 0:00:41.9]} 41... Kb6 {[%clk 0:01:17.3]}
42. Ra8 {[%clk 0:00:35]} 42... Bxb5 {[%clk 0:01:16.1]} 43. Bxf7 {[%clk
0:00:32.3]} 43... Rxe3 {[%clk 0:01:15.5]} 44. Rg8 {[%clk 0:00:32.9]} 44... Re5
{[%clk 0:01:15.1]} 45. Kf2 {[%clk 0:00:27.6]} 45... Bc6 {[%clk 0:01:12.7]} 46.
g3 {[%clk 0:00:22.4]} 46... hxg3+ {[%clk 0:01:12.1]} 47. Kxg3 {[%clk 0:00:23.3]}
47... Kc5 {[%clk 0:01:12.5]} 48. f4 {[%clk 0:00:15.4]} 48... gxf4+ {[%clk
0:01:07]} 49. Kxf4 {[%clk 0:00:15.8]} 49... Re4+ {[%clk 0:01:07.9]} 50. Kf5
{[%clk 0:00:15.4]} 50... Rd4 {[%clk 0:01:07.2]} 51. Ke5 {[%clk 0:00:13.7]} 51...
Rd2 {[%clk 0:01:06.8]} 52. Rc8 {[%clk 0:00:08.5]} 52... Re2+ {[%clk 0:01:04.5]}
53. Kf6 {[%clk 0:00:09]} 53... Rf2+ {[%clk 0:01:04.1]} 54. Ke7 {[%clk
0:00:08.7]} 54... Re2+ {[%clk 0:01:02.7]} 55. Kf6 {[%clk 0:00:08.8]} 55... Kb6
{[%clk 0:01:03.2]} 56. Be6 {[%clk 0:00:08.3]} 56... Rf2+ {[%clk 0:01:01.8]} 57.
Ke5 {[%clk 0:00:08.1]} 57... Re2+ {[%clk 0:01:02.6]} 58. Kd6 {[%clk 0:00:08.7]}
58... Rd2+ {[%clk 0:01:00.1]} 59. Ke5 {[%clk 0:00:09]} 59... Rd1 {[%clk
0:00:57.4]} 60. Rh8 {[%clk 0:00:08.5]} 60... Kc5 {[%clk 0:00:57.3]} 61. Rh2
{[%clk 0:00:08.8]} 61... Re1+ {[%clk 0:00:57.3]} 62. Kf6 {[%clk 0:00:08.5]}
62... b5 {[%clk 0:00:57.6]} 63. Rc2+ {[%clk 0:00:09.1]} 63... Kb6 {[%clk
0:00:57.4]} 64. Bg4 {[%clk 0:00:09]} 64... Rf1+ {[%clk 0:00:55.7]} 65. Ke5
{[%clk 0:00:08.8]} 65... Re1+ {[%clk 0:00:55.3]} 66. Re2 {[%clk 0:00:09.4]}
66... Rc1 {[%clk 0:00:54]} 67. Be6 {[%clk 0:00:08.4]} 67... b4 {[%clk
0:00:52.6]} 68. Kd4 {[%clk 0:00:08.6]} 68... Rc3 {[%clk 0:00:48.8]} 69. Re3
{[%clk 0:00:08.3]} 69... Rc5 {[%clk 0:00:46]} 70. Kd3 {[%clk 0:00:08.2]} 70...
Kb5 {[%clk 0:00:45]} 71. Kd2 {[%clk 0:00:08.8]} 71... Ka4 {[%clk 0:00:41.8]} 72.
Bb3+ {[%clk 0:00:09.4]} 72... Kb5 {[%clk 0:00:41.6]} 73. Rg3 {[%clk 0:00:07.5]}
73... Bd5 {[%clk 0:00:40.7]} 74. Bxd5 {[%clk 0:00:07.3]} 74... Rxd5+ {[%clk
0:00:41.6]} 75. Kc2 {[%clk 0:00:08.1]} 75... Rc5+ {[%clk 0:00:42.4]} 76. Kb2
{[%clk 0:00:08.5]} 76... Rf5 {[%clk 0:00:43]} 77. Kb3 {[%clk 0:00:07.2]} 77...
Rd5 {[%clk 0:00:41.5]} 78. Rh3 {[%clk 0:00:07.6]} 78... Rc5 {[%clk 0:00:41.5]}
79. Rg3 {[%clk 0:00:08.1]} 79... Rh5 {[%clk 0:00:41.5]} 80. Rf3 {[%clk
0:00:08.5]} 80... Kc5 {[%clk 0:00:40.8]} 81. Rg3 {[%clk 0:00:08.4]} 81... Rd5
{[%clk 0:00:40.1]} 82. Rf3 {[%clk 0:00:08.6]} 82... Rd4 {[%clk 0:00:38.6]} 83.
Rf5+ {[%clk 0:00:08.7]} 83... Kc6 {[%clk 0:00:38.7]} 84. Rh5 {[%clk 0:00:08.7]}
84... Rg4 {[%clk 0:00:38.1]} 85. Rf5 {[%clk 0:00:08.9]} 85... Rh4 {[%clk
0:00:37.5]} 86. Rg5 {[%clk 0:00:09.2]} 86... Kb6 {[%clk 0:00:37.6]} 87. Rf5
{[%clk 0:00:09.6]} 87... Rg4 {[%clk 0:00:37.2]} 88. Re5 {[%clk 0:00:10]} 88...
Kc6 {[%clk 0:00:36.7]} 89. Rf5 {[%clk 0:00:10.4]} 89... Kb6 {[%clk 0:00:37]} 90.
Re5 {[%clk 0:00:10.9]} 90... Kc6 {[%clk 0:00:37.5]} 91. Rf5 {[%clk 0:00:11.4]}
1/2-1/2

[Event "*** SCC Grand Prix: Titled Tuesday Blitz"]
[Site "Chess.com"]
[Date "2020.07.14"]
[Round "1"]
[White "WeAintSurePal"]
[Black "Denmark2015"]
[Result "1/2-1/2"]
[WhiteElo "2272"]
[BlackElo "2569"]
[TimeControl "180+1"]
[EndTime "10:09:06 PDT"]
[Termination "Game drawn by stalemate"]

1. d4 {[%clk 0:02:34.6]} 1... e6 {[%clk 0:02:58.5]} 2. Nf3 {[%clk 0:02:32.1]}
2... f5 {[%clk 0:02:58.7]} 3. h3 {[%clk 0:02:29.8]} 3... Nf6 {[%clk 0:02:58.6]}
4. g4 {[%clk 0:02:29.9]} 4... Ne4 {[%clk 0:02:53.1]} 5. Nc3 {[%clk 0:02:22.9]}
5... Bb4 {[%clk 0:02:52.3]} 6. Bd2 {[%clk 0:02:22.5]} 6... Nxd2 {[%clk
0:02:44.7]} 7. Qxd2 {[%clk 0:02:22.4]} 7... O-O {[%clk 0:02:36.3]} 8. gxf5
{[%clk 0:02:19.2]} 8... exf5 {[%clk 0:02:32.9]} 9. Qd3 {[%clk 0:02:13.7]} 9...
d5 {[%clk 0:02:22.6]} 10. h4 {[%clk 0:01:53.5]} 10... Nd7 {[%clk 0:02:10.6]} 11.
O-O-O {[%clk 0:01:52]} 11... Nf6 {[%clk 0:02:10.1]} 12. Ne5 {[%clk 0:01:42.7]}
12... Ne4 {[%clk 0:01:52.9]} 13. Nxe4 {[%clk 0:01:42.5]} 13... fxe4 {[%clk
0:01:52.5]} 14. Qe3 {[%clk 0:01:40.6]} 14... Qf6 {[%clk 0:01:44.4]} 15. Qb3
{[%clk 0:01:39]} 15... Bd6 {[%clk 0:01:28.9]} 16. Qxd5+ {[%clk 0:01:28.5]} 16...
Be6 {[%clk 0:01:22.3]} 17. Qxe4 {[%clk 0:01:28.5]} 17... Qxf2 {[%clk 0:01:13.4]}
18. e3 {[%clk 0:01:23.1]} 18... c6 {[%clk 0:01:09.2]} 19. Bc4 {[%clk 0:01:18.7]}
19... Rae8 {[%clk 0:01:03.5]} 20. Bxe6+ {[%clk 0:01:14.9]} 20... Rxe6 {[%clk
0:01:02.9]} 21. Rhg1 {[%clk 0:01:13.4]} 21... Qf6 {[%clk 0:00:45]} 22. Rg5
{[%clk 0:01:10.8]} 22... h6 {[%clk 0:00:28.9]} 23. Rg4 {[%clk 0:00:59]} 23...
Bxe5 {[%clk 0:00:27.3]} 24. dxe5 {[%clk 0:00:57.5]} 24... Qxe5 {[%clk
0:00:26.2]} 25. Qxe5 {[%clk 0:00:50.7]} 25... Rxe5 {[%clk 0:00:27.1]} 26. Rd7
{[%clk 0:00:50.5]} 26... Rf7 {[%clk 0:00:26.8]} 27. Rd8+ {[%clk 0:00:45.3]}
27... Kh7 {[%clk 0:00:25.7]} 28. Ra8 {[%clk 0:00:43]} 28... b6 {[%clk
0:00:23.6]} 29. Ra4 {[%clk 0:00:38.4]} 29... a5 {[%clk 0:00:22.9]} 30. Rb8
{[%clk 0:00:38.1]} 30... Rb5 {[%clk 0:00:19.7]} 31. Re4 {[%clk 0:00:34.7]} 31...
h5 {[%clk 0:00:12.8]} 32. Re6 {[%clk 0:00:33.4]} 32... Rf6 {[%clk 0:00:11.7]}
33. Rxf6 {[%clk 0:00:32.9]} 33... gxf6 {[%clk 0:00:12.2]} 34. Rc8 {[%clk
0:00:33.7]} 34... Rc5 {[%clk 0:00:12]} 35. Rc7+ {[%clk 0:00:32.8]} 35... Kg6
{[%clk 0:00:12.4]} 36. Rb7 {[%clk 0:00:33.2]} 36... b5 {[%clk 0:00:12.2]} 37.
Kd2 {[%clk 0:00:33.5]} 37... a4 {[%clk 0:00:12.5]} 38. Rb8 {[%clk 0:00:31.8]}
38... Rd5+ {[%clk 0:00:12.8]} 39. Ke2 {[%clk 0:00:31.9]} 39... Kf5 {[%clk
0:00:13.2]} 40. Rc8 {[%clk 0:00:29.2]} 40... Rc5 {[%clk 0:00:13.4]} 41. c3
{[%clk 0:00:28.6]} 41... Kg4 {[%clk 0:00:13.9]} 42. Rf8 {[%clk 0:00:27.3]} 42...
Kf5 {[%clk 0:00:13.1]} 43. Kf3 {[%clk 0:00:26.5]} 43... Rc4 {[%clk 0:00:12.7]}
44. Rc8 {[%clk 0:00:25]} 44... Ke5 {[%clk 0:00:11.4]} 45. Re8+ {[%clk
0:00:24.2]} 45... Kf5 {[%clk 0:00:11.6]} 46. Rg8 {[%clk 0:00:21.8]} 46... Rxh4
{[%clk 0:00:10.5]} 47. Rc8 {[%clk 0:00:19.8]} 47... Rh2 {[%clk 0:00:10.3]} 48.
Rxc6 {[%clk 0:00:18.6]} 48... Rxb2 {[%clk 0:00:10.8]} 49. Rc5+ {[%clk 0:00:19]}
49... Kg6 {[%clk 0:00:11]} 50. a3 {[%clk 0:00:19]} 50... f5 {[%clk 0:00:11.2]}
51. Kf4 {[%clk 0:00:18.9]} 51... Rf2+ {[%clk 0:00:10.8]} 52. Kg3 {[%clk
0:00:19.2]} 52... Rc2 {[%clk 0:00:10.5]} 53. Kf4 {[%clk 0:00:19]} 53... Rc1
{[%clk 0:00:09.3]} 54. Rc6+ {[%clk 0:00:18.9]} 54... Kg7 {[%clk 0:00:09.1]} 55.
Kxf5 {[%clk 0:00:19.1]} 55... Rd1 {[%clk 0:00:09.5]} 56. e4 {[%clk 0:00:17.9]}
56... Rf1+ {[%clk 0:00:09.3]} 57. Kg5 {[%clk 0:00:17.4]} 57... Re1 {[%clk
0:00:09.8]} 58. Rc5 {[%clk 0:00:17.2]} 58... h4 {[%clk 0:00:09.5]} 59. Kxh4
{[%clk 0:00:16.8]} 59... Rxe4+ {[%clk 0:00:10.1]} 60. Kg5 {[%clk 0:00:17.2]}
60... Re3 {[%clk 0:00:09.4]} 61. Rc7+ {[%clk 0:00:17.1]} 61... Kf8 {[%clk
0:00:09.8]} 62. Kf4 {[%clk 0:00:17.2]} 62... Re1 {[%clk 0:00:09.1]} 63. Rc5
{[%clk 0:00:17.3]} 63... Ra1 {[%clk 0:00:09.6]} 64. Rxb5 {[%clk 0:00:17.1]}
64... Rxa3 {[%clk 0:00:10.5]} 65. Ra5 {[%clk 0:00:17.3]} 65... Ke7 {[%clk
0:00:10.7]} 66. Ke4 {[%clk 0:00:16.4]} 66... Kd6 {[%clk 0:00:11.6]} 67. Kd4
{[%clk 0:00:16.5]} 67... Kc6 {[%clk 0:00:12.5]} 68. Kc4 {[%clk 0:00:15.7]} 68...
Kb6 {[%clk 0:00:13.4]} 69. Rg5 {[%clk 0:00:14.8]} 69... Ra1 {[%clk 0:00:14.3]}
70. Rg6+ {[%clk 0:00:13.7]} 70... Kc7 {[%clk 0:00:13.9]} 71. Kb4 {[%clk
0:00:13.1]} 71... a3 {[%clk 0:00:14.1]} 72. Ra6 {[%clk 0:00:13.3]} 72... a2
{[%clk 0:00:14.6]} 73. Kb3 {[%clk 0:00:13.6]} 73... Rb1+ {[%clk 0:00:12.4]} 74.
Kxa2 {[%clk 0:00:13.3]} 74... Rb5 {[%clk 0:00:13]} 75. Rf6 {[%clk 0:00:12.2]}
75... Kd7 {[%clk 0:00:12.4]} 76. Rf3 {[%clk 0:00:12.4]} 76... Kd6 {[%clk
0:00:12.5]} 77. Ka3 {[%clk 0:00:12.7]} 77... Rb1 {[%clk 0:00:12.5]} 78. Rf4
{[%clk 0:00:12.3]} 78... Kd5 {[%clk 0:00:12.6]} 79. Rd4+ {[%clk 0:00:12.4]}
79... Kc5 {[%clk 0:00:12.8]} 80. Rb4 {[%clk 0:00:12]} 80... Rxb4 {[%clk
0:00:10.9]} 81. cxb4+ {[%clk 0:00:12.9]} 81... Kb5 {[%clk 0:00:11.6]} 82. Kb3
{[%clk 0:00:13.3]} 82... Kb6 {[%clk 0:00:12]} 83. Ka4 {[%clk 0:00:14.2]} 83...
Ka6 {[%clk 0:00:12.2]} 84. b5+ {[%clk 0:00:15.1]} 84... Kb6 {[%clk 0:00:12.2]}
85. Kb4 {[%clk 0:00:15.4]} 85... Kb7 {[%clk 0:00:12.5]} 86. Ka5 {[%clk
0:00:16.3]} 86... Ka7 {[%clk 0:00:12.8]} 87. b6+ {[%clk 0:00:16.5]} 87... Kb7
{[%clk 0:00:13.2]} 88. Kb5 {[%clk 0:00:17.4]} 88... Kb8 {[%clk 0:00:13.6]} 89.
Kc6 {[%clk 0:00:17.9]} 89... Kc8 {[%clk 0:00:14]} 90. b7+ {[%clk 0:00:18.8]}
90... Kb8 {[%clk 0:00:14.4]} 91. Kb6 {[%clk 0:00:19.7]} 1/2-1/2

[Event "*** SCC Grand Prix: Titled Tuesday Blitz"]
[Site "Chess.com"]
[Date "2020.07.14"]
[Round "1"]
[White "jonychess03"]
[Black "Undisputed92"]
[Result "0-1"]
[WhiteElo "2306"]
[BlackElo "2617"]
[TimeControl "180+1"]
[EndTime "10:09:20 PDT"]
[Termination "Undisputed92 won by resignation"]

1. c4 {[%clk 0:03:00.9]} 1... e5 {[%clk 0:02:59.1]} 2. Nc3 {[%clk 0:03:01.4]}
2... Nf6 {[%clk 0:02:58.6]} 3. g3 {[%clk 0:03:01.9]} 3... Bb4 {[%clk 0:02:58.2]}
4. Bg2 {[%clk 0:03:01.8]} 4... O-O {[%clk 0:02:57.8]} 5. e3 {[%clk 0:03:02.3]}
5... Bxc3 {[%clk 0:02:57.4]} 6. bxc3 {[%clk 0:03:01]} 6... e4 {[%clk 0:02:57.1]}
7. f3 {[%clk 0:02:56.1]} 7... Re8 {[%clk 0:02:40.4]} 8. fxe4 {[%clk 0:02:54.3]}
8... Nxe4 {[%clk 0:02:41.3]} 9. Nf3 {[%clk 0:02:54.6]} 9... d6 {[%clk
0:02:41.6]} 10. O-O {[%clk 0:02:54.2]} 10... Bg4 {[%clk 0:02:41.6]} 11. Qc2
{[%clk 0:02:45.4]} 11... Nc6 {[%clk 0:02:36.9]} 12. d3 {[%clk 0:02:43.8]} 12...
Nc5 {[%clk 0:02:33.4]} 13. Rb1 {[%clk 0:02:37.6]} 13... Rb8 {[%clk 0:02:32.3]}
14. e4 {[%clk 0:02:37.1]} 14... Ne5 {[%clk 0:02:25.8]} 15. Ne1 {[%clk
0:01:47.5]} 15... Ncd7 {[%clk 0:02:19.6]} 16. Be3 {[%clk 0:01:45]} 16... b6
{[%clk 0:02:17.1]} 17. h3 {[%clk 0:01:43]} 17... Bh5 {[%clk 0:02:17]} 18. g4
{[%clk 0:01:40.7]} 18... Bg6 {[%clk 0:02:16.8]} 19. Nf3 {[%clk 0:01:39.9]} 19...
Nxf3+ {[%clk 0:02:14.1]} 20. Rxf3 {[%clk 0:01:35.6]} 20... Ne5 {[%clk 0:02:14]}
21. Rf2 {[%clk 0:01:35.6]} 21... c5 {[%clk 0:02:11.1]} 22. Rbf1 {[%clk
0:01:27.2]} 22... Qh4 {[%clk 0:02:03.8]} 23. Qd2 {[%clk 0:01:20.3]} 23... h6
{[%clk 0:02:03.1]} 24. a4 {[%clk 0:01:16]} 24... Qe7 {[%clk 0:01:51.6]} 25. Bf4
{[%clk 0:01:11.4]} 25... Rbd8 {[%clk 0:01:48.8]} 26. Bg3 {[%clk 0:01:09.9]}
26... Qd7 {[%clk 0:01:47.1]} 27. Qc2 {[%clk 0:01:07]} 27... Qe6 {[%clk
0:01:44.4]} 28. Kh2 {[%clk 0:01:06.1]} 28... Qc8 {[%clk 0:01:41.4]} 29. Ra1
{[%clk 0:01:02.2]} 29... Rd7 {[%clk 0:01:39.8]} 30. a5 {[%clk 0:01:01.8]} 30...
Rb7 {[%clk 0:01:38.7]} 31. axb6 {[%clk 0:01:01.6]} 31... axb6 {[%clk 0:01:38.6]}
32. Rb1 {[%clk 0:00:54.8]} 32... Qd7 {[%clk 0:01:34.6]} 33. Qd1 {[%clk
0:00:51.1]} 33... Reb8 {[%clk 0:01:30.9]} 34. Rfb2 {[%clk 0:00:50.8]} 34... b5
{[%clk 0:01:29.6]} 35. cxb5 {[%clk 0:00:48.9]} 35... Rxb5 {[%clk 0:01:30.5]} 36.
Rxb5 {[%clk 0:00:48.7]} 36... Rxb5 {[%clk 0:01:31.2]} 37. Rxb5 {[%clk 0:00:49]}
37... Qxb5 {[%clk 0:01:31.9]} 38. Bxe5 {[%clk 0:00:49.2]} 38... dxe5 {[%clk
0:01:30.8]} 39. d4 {[%clk 0:00:49.4]} 39... cxd4 {[%clk 0:01:15.7]} 40. cxd4
{[%clk 0:00:50.3]} 40... Qb2 {[%clk 0:01:15.3]} 41. dxe5 {[%clk 0:00:29.6]}
41... Bxe4 {[%clk 0:01:13.9]} 42. Qf1 {[%clk 0:00:22.8]} 42... Qxe5+ {[%clk
0:01:06.9]} 43. Kh1 {[%clk 0:00:22.5]} 43... Bg6 {[%clk 0:01:05.1]} 44. Qf3
{[%clk 0:00:20.5]} 44... Kh7 {[%clk 0:01:03.1]} 45. Qd5 {[%clk 0:00:18.2]} 45...
Qe3 {[%clk 0:01:00.3]} 46. Qf3 {[%clk 0:00:18]} 46... Qc1+ {[%clk 0:00:59.1]}
47. Qf1 {[%clk 0:00:18.1]} 47... Qg5 {[%clk 0:00:58.8]} 48. Qf3 {[%clk
0:00:18.3]} 48... h5 {[%clk 0:00:57.6]} 49. gxh5 {[%clk 0:00:17.5]} 49... Bxh5
{[%clk 0:00:58.5]} 50. Qf2 {[%clk 0:00:17.7]} 50... Bg6 {[%clk 0:00:57.1]} 51.
Qf3 {[%clk 0:00:17.7]} 51... Qc1+ {[%clk 0:00:56.1]} 52. Kh2 {[%clk 0:00:17.7]}
52... Qc7+ {[%clk 0:00:55.2]} 53. Qg3 {[%clk 0:00:18]} 53... Qc4 {[%clk
0:00:53.1]} 54. Qg4 {[%clk 0:00:15.8]} 54... Qc7+ {[%clk 0:00:42.3]} 55. Qg3
{[%clk 0:00:15.4]} 55... Qd8 {[%clk 0:00:42.3]} 56. Qg4 {[%clk 0:00:14.3]} 56...
f5 {[%clk 0:00:41.2]} 57. Qf4 {[%clk 0:00:14.5]} 57... Qf6 {[%clk 0:00:40.1]}
58. Kg3 {[%clk 0:00:14.3]} 58... Qc3+ {[%clk 0:00:23.9]} 59. Bf3 {[%clk
0:00:13.3]} 59... Qe1+ {[%clk 0:00:21.8]} 60. Kh2 {[%clk 0:00:11.6]} 60... Qf2+
{[%clk 0:00:20.8]} 61. Kh1 {[%clk 0:00:11.8]} 61... Qf1+ {[%clk 0:00:20.9]} 62.
Kh2 {[%clk 0:00:11.8]} 62... Qf2+ {[%clk 0:00:21.3]} 63. Kh1 {[%clk 0:00:12.2]}
63... Qe1+ {[%clk 0:00:21.3]} 64. Kh2 {[%clk 0:00:12.3]} 64... Qe7 {[%clk
0:00:19.8]} 65. Kg3 {[%clk 0:00:11.6]} 65... Qf6 {[%clk 0:00:19]} 66. Qh4+
{[%clk 0:00:10.6]} 66... Qxh4+ {[%clk 0:00:19.2]} 67. Kxh4 {[%clk 0:00:11.5]}
67... Kh6 {[%clk 0:00:19.6]} 68. Be2 {[%clk 0:00:11.5]} 68... Bh7 {[%clk
0:00:19.7]} 69. Bf3 {[%clk 0:00:10.9]} 69... Bg8 {[%clk 0:00:19.6]} 70. Kg3
{[%clk 0:00:10.8]} 70... g5 {[%clk 0:00:17.1]} 71. Be2 {[%clk 0:00:10.2]} 71...
f4+ {[%clk 0:00:15.7]} 72. Kg2 {[%clk 0:00:08.4]} 72... Bd5+ {[%clk 0:00:15.7]}
73. Kh2 {[%clk 0:00:06.2]} 73... Kg6 {[%clk 0:00:15.2]} 74. Bd3+ {[%clk
0:00:05.9]} 74... Kf6 {[%clk 0:00:15.5]} 75. Kg1 {[%clk 0:00:06.2]} 75... Ke5
{[%clk 0:00:15.6]} 76. Kf2 {[%clk 0:00:05.9]} 76... Kd4 {[%clk 0:00:15.8]} 77.
Bf5 {[%clk 0:00:05.9]} 77... Ke5 {[%clk 0:00:16]} 78. Bg4 {[%clk 0:00:05.3]}
78... Be6 {[%clk 0:00:16.2]} 79. Kf3 {[%clk 0:00:05.7]} 79... Bxg4+ {[%clk
0:00:15.3]} 80. Kxg4 {[%clk 0:00:06.6]} 80... Ke4 {[%clk 0:00:15.2]} 81. Kxg5
{[%clk 0:00:07.1]} 81... f3 {[%clk 0:00:15.5]} 82. h4 {[%clk 0:00:08]} 82... f2
{[%clk 0:00:15.9]} 83. h5 {[%clk 0:00:08.9]} 83... f1=Q {[%clk 0:00:16.1]} 84.
Kg6 {[%clk 0:00:07.8]} 84... Qf5+ {[%clk 0:00:15.9]} 85. Kh6 {[%clk 0:00:07.7]}
85... Qg4 {[%clk 0:00:15.8]} 86. Kh7 {[%clk 0:00:07]} 86... Qxh5+ {[%clk
0:00:15.9]} 0-1